bitfinex/quotes_SOLUSD_20220212
["timestamp","ask_amount","ask_price","bid_price","bid_amount"]
[1644648830097,0.03335173,94.76,94.7,12.67]
[1644648830297,0.03335173,94.78,94.7,12.67]
[1644648830496,113.0,94.79,94.7,12.67]
[1644648830497,38.18426248,94.769,94.7,12.67]
[1644648830699,38.18426248,94.769,94.701,2.38366791]
[1644648831098,36.18426248,94.769,94.701,2.38366791]
[1644648831296,5.277,94.789,94.701,2.38366791]
[1644648831501,113.03335173,94.79,94.72,15.8298]
[1644648831697,113.0,94.79,94.73,12.67]
[1644648832298,46.64404122,94.769,94.73,12.67]
[1644648832499,46.64404122,94.769,94.74,15.8257]
[1644648832701,46.64404122,94.769,94.7,52.7736]
[1644648832702,5.277,94.768,94.72,12.67]
[1644648832900,46.64404122,94.769,94.72,12.67]
[1644648833500,46.64404122,94.769,94.72,28.5031]
[1644648833701,113.03335173,94.79,94.72,28.5031]
[1644648833904,108.57496272,94.79,94.72,30.88676791]
[1644648834101,5.276,94.798,94.72,30.88676791]
[1644648834303,5.276,94.798,94.722,1.4734421]
[1644648834505,5.276,94.798,94.729,1.4734421]
[1644648834700,5.276,94.798,94.723,5.276]
[1644648834701,5.276,94.798,94.741,1.4734421]
[1644648834900,5.276,94.798,94.75,28.4902]
[1644648835099,39.97634814,94.8,94.75,28.4902]
[1644648835500,0.03335173,94.83,94.75,30.87386791]
[1644648835703,5.275,94.813,94.751,5.274]
[1644648835904,0.03335173,94.84,94.751,5.274]
[1644648836100,0.03335173,94.83,94.76,15.8239]
[1644648836300,113.0,94.841,94.76,15.8239]
[1644648836301,5.274,94.84,94.76,28.4939]
[1644648836501,5.274,94.829,94.76,28.4939]
[1644648836701,43.96928172,94.839,94.76,28.4939]
[1644648836901,5.274,94.838,94.76,28.4939]
[1644648838803,5.274,94.838,94.761,2.38366791]
[1644648839004,5.274,94.859,94.78,15.8196]
[1644648839203,5.274,94.838,94.78,15.8196]
[1644648839401,113.0,94.86,94.78,15.8196]
[1644648839402,5.273,94.859,94.78,15.8196]
[1644648840006,47.87136001,94.858,94.78,15.8196]
[1644648840208,5.273,94.857,94.78,15.8196]
[1644648840407,7.65666791,94.857,94.78,15.8196]
[1644648840807,2.38366791,94.856,94.78,15.8196]
[1644648841011,5.273,94.855,94.78,15.8196]
[1644648842015,45.4876921,94.858,94.78,15.8196]
[1644648842216,5.273,94.857,94.78,15.8196]
[1644648842621,2.38366791,94.856,94.78,15.8196]
[1644648842825,5.273,94.855,94.78,15.8196]
[1644648843023,69.0,94.854,94.76,12.67]
[1644648843223,69.0,94.854,94.74,12.67]
[1644648843224,28.2612,94.853,94.74,12.67]
[1644648843424,28.2612,94.853,94.719,1.4734421]
[1644648843425,12.70335173,94.84,94.719,1.4734421]
[1644648843628,113.0,94.818,94.694,1.4734421]
[1644648843925,19.70335173,94.81,94.686,1.4734421]
[1644648844125,19.70335173,94.81,94.685,50.2126421]
[1644648844126,34.368272,94.779,94.685,50.2126421]
[1644648844326,34.368272,94.779,94.7,52.778]
[1644648844626,7.66066791,94.778,94.685,51.12286791]
[1644648844826,55.08326791,94.778,94.682,1.4734421]
[1644648845027,2.38366791,94.777,94.673,1.4734421]
[1644648845227,0.03335173,94.77,94.669,1.4734421]
[1644648845427,0.03335173,94.77,94.672,1.4734421]
[1644648845628,7.66266791,94.769,94.68,15.8397]
[1644648845927,2.38366791,94.768,94.663,1.4734421]
[1644648846129,7.66066791,94.768,94.66,1.4734421]
[1644648846331,2.38366791,94.768,94.659,1.4734421]
[1644648846531,7.66266791,94.767,94.659,1.4734421]
[1644648846733,113.0,94.745,94.66,15.843]
[1644648846932,47.05282389,94.744,94.653,1.4734421]
[1644648847232,0.03335173,94.74,94.646,1.4734421]
[1644648847432,5.28,94.739,94.641,1.4734421]
[1644648847633,0.03335173,94.73,94.64,1.4734421]
[1644648847834,5.28,94.729,94.639,1.4734421]
[1644648848032,0.03335173,94.72,94.638,1.4734421]
[1644648848434,5.281,94.719,94.63,1.4734421]
[1644648848633,7.66466791,94.719,94.633,1.4734421]
[1644648848837,2.38366791,94.718,94.634,1.4734421]
[1644648849137,0.03335173,94.72,94.645,1.4734421]
[1644648849337,34.40827791,94.728,94.638,1.4734421]
[1644648849536,5.281,94.719,94.638,1.4734421]
[1644648849739,0.03335173,94.72,94.639,1.4734421]
[1644648849947,5.281,94.718,94.638,1.4734421]
[1644648850149,5.281,94.719,94.635,1.4734421]
[1644648850349,0.03335173,94.72,94.628,1.4734421]
[1644648850350,5.281,94.717,94.628,1.4734421]
[1644648850549,7.66466791,94.718,94.628,1.4734421]
[1644648850754,2.38366791,94.718,94.622,1.4734421]
[1644648850952,47.0,94.716,94.62,0.4734421]
[1644648851153,47.0,94.716,94.593,2.38366791]
[1644648851352,5.282,94.715,94.6,15.8529]
[1644648851851,24.7952,94.717,94.6,15.8529]
[1644648852052,5.282,94.716,94.6,15.8529]
[1644648852860,24.7952,94.717,94.601,2.38366791]
[1644648853053,24.7952,94.717,94.63,15.8486]
[1644648853454,24.7952,94.717,94.631,2.38366791]
[1644648853856,24.7952,94.717,94.63,15.8486]
[1644648854154,5.281,94.716,94.602,17.43365871]
[1644648854554,5.281,94.716,94.6,12.67]
[1644648854755,24.7952,94.717,94.6,12.67]
[1644648854955,5.282,94.716,94.603,2.38366791]
[1644648856158,5.282,94.716,94.6,12.67]
[1644648856355,15.8532,94.71,94.61,15.8515]
[1644648856555,40.98184144,94.708,94.61,15.8515]
[1644648857961,5.282,94.707,94.61,15.8515]
[1644648858163,5.282,94.707,94.59,65.5033]
[1644648858361,29.5129,94.707,94.59,65.5033]
[1644648858764,29.5129,94.707,94.591,2.38366791]
[1644648859761,29.5129,94.707,94.6,15.8533]
[1644648863567,29.5129,94.707,94.62,15.8491]
[1644648863768,24.2309,94.707,94.62,15.8491]
[1644648863965,24.2309,94.707,94.621,2.38366791]
[1644648864869,24.2309,94.707,94.63,28.5183]
[1644648865270,40.98184144,94.708,94.631,19.81732662]
[1644648865668,40.98184144,94.708,94.63,12.67]
[1644648865669,40.98184144,94.708,94.632,19.81732662]
[1644648866070,40.98184144,94.708,94.633,2.38366791]
[1644648866471,40.98184144,94.708,94.65,15.843]
[1644648866874,40.98184144,94.708,94.633,2.38366791]
[1644648868273,5.281,94.707,94.633,2.38366791]
[1644648868974,40.98184144,94.708,94.633,2.38366791]
[1644648869175,5.281,94.707,94.633,2.38366791]
[1644648869377,40.98184144,94.708,94.633,2.38366791]
[1644648869575,40.98184144,94.708,94.64,15.8466]
[1644648871874,5.281,94.707,94.64,15.8466]
[1644648875581,40.98184144,94.708,94.64,15.8466]
[1644648876985,5.281,94.707,94.64,15.8466]
[1644648879287,40.98184144,94.708,94.64,15.8466]
[1644648879688,40.98184144,94.708,94.62,15.8496]
[1644648879891,40.98184144,94.708,94.556,79.6409]
[1644648879892,7.66466791,94.707,94.608,2.94688419]
[1644648880091,31.76426791,94.707,94.608,2.94688419]
[1644648880296,2.38366791,94.706,94.607,2.94688419]
[1644648880496,2.38366791,94.706,94.581,4.45064963]
[1644648880497,5.282,94.705,94.603,2.94688419]
[1644648880697,5.282,94.705,94.605,2.94688419]
[1644648880895,5.282,94.705,94.608,2.94688419]
[1644648881099,23.0162,94.704,94.607,2.94688419]
[1644648881494,5.282,94.703,94.607,2.94688419]
[1644648881695,12.67,94.7,94.607,2.94688419]
[1644648881896,5.282,94.699,94.604,2.94688419]
[1644648882094,37.8253,94.7,94.601,4.92447901]
[1644648882095,28.5253,94.7,94.601,4.92447901]
[1644648882294,5.283,94.698,94.596,2.94688419]
[1644648882496,5.282,94.699,94.595,2.94688419]
[1644648882695,5.283,94.697,94.595,2.94688419]
[1644648882896,42.51391921,94.689,94.595,2.94688419]
[1644648883195,42.51391921,94.689,94.569,4.45064963]
[1644648883196,28.2218,94.688,94.607,2.94688419]
[1644648883596,28.2218,94.688,94.606,2.94688419]
[1644648883815,28.2218,94.688,94.608,4.92447901]
[1644648884014,2.38366791,94.687,94.607,4.92447901]
[1644648884217,2.38366791,94.687,94.574,16.27168982]
[1644648884218,2.38366791,94.687,94.592,2.94688419]
[1644648884515,5.283,94.686,94.596,2.94688419]
[1644648884821,5.283,94.687,94.597,7.87013574]
[1644648885015,5.283,94.685,94.596,2.94688419]
[1644648885216,5.283,94.686,94.596,2.94688419]
[1644648885517,2.38366791,94.686,94.592,4.92325155]
[1644648885715,5.283,94.685,94.588,2.94688419]
[1644648885917,22.9388,94.688,94.597,2.38366791]
[1644648886115,42.51391921,94.689,94.612,2.94688419]
[1644648886314,42.51391921,94.689,94.62,15.8496]
[1644648886518,42.51391921,94.689,94.621,4.92325155]
[1644648886719,5.282,94.688,94.62,15.8496]
[1644648887121,42.51391921,94.689,94.62,15.8496]
[1644648887519,5.282,94.688,94.61,2.94688419]
[1644648887719,5.282,94.688,94.608,2.94688419]
[1644648887920,5.282,94.688,94.611,4.94937445]
[1644648888120,7.66566791,94.688,94.602,2.94688419]
[1644648888320,2.38366791,94.688,94.6,2.94688419]
[1644648888519,5.282,94.687,94.597,2.94688419]
[1644648888720,24.7379,94.686,94.59,2.94688419]
[1644648888926,5.283,94.685,94.591,2.94688419]
[1644648889223,5.283,94.685,94.6,15.8538]
[1644648889521,24.7379,94.686,94.601,4.94956319]
[1644648889721,5.283,94.684,94.601,4.94956319]
[1644648889923,5.283,94.685,94.601,4.94956319]
[1644648893623,5.283,94.685,94.602,2.38366791]
[1644648893823,5.283,94.685,94.61,15.8519]
[1644648894024,5.282,94.709,94.623,2.94688419]
[1644648894227,5.281,94.719,94.631,2.94688419]
[1644648894428,7.03335173,94.75,94.632,23.2174]
[1644648894429,5.281,94.728,94.632,23.2174]
[1644648894625,52.4227,94.744,94.636,2.94688419]
[1644648894826,5.28,94.727,94.636,2.94688419]
[1644648895024,42.05540015,94.726,94.637,5.3305521]
[1644648895226,47.33540015,94.726,94.638,4.94956319]
[1644648895525,47.33540015,94.726,94.638,7.3332311]
[1644648895726,47.33540015,94.726,94.64,15.8459]
[1644648896126,47.33540015,94.726,94.641,7.3332311]
[1644648896527,47.33540015,94.726,94.642,5.3332311]
[1644648896728,47.33540015,94.726,94.642,2.38366791]
[1644648896930,47.33540015,94.726,94.636,2.94688419]
[1644648896931,47.33540015,94.726,94.643,2.38366791]
[1644648897227,47.33540015,94.726,94.635,2.94688419]
[1644648897831,47.33540015,94.726,94.66,15.8442]
[1644648899228,47.33540015,94.726,94.64,15.8467]
[1644648900228,42.05540015,94.726,94.623,2.94688419]
[1644648900428,113.0,94.71,94.621,2.94688419]
[1644648900628,39.48815952,94.709,94.62,15.8502]
[1644648902832,39.48815952,94.709,94.606,2.94688419]
[1644648903131,22.833,94.708,94.6,15.8535]
[1644648903334,5.282,94.707,94.6,18.80038419]
[1644648903631,5.282,94.707,94.6,15.8535]
[1644648903832,15.8552,94.7,94.6,15.8535]
[1644648904030,5.282,94.699,94.6,15.8535]
[1644648904835,5.282,94.707,94.616,2.94688419]
[1644648905031,22.833,94.708,94.63,15.8492]
[1644648905531,5.281,94.707,94.63,15.8492]
[1644648905731,22.833,94.708,94.63,15.8492]
[1644648906334,34.20715952,94.709,94.63,15.8492]
[1644648906535,34.20715952,94.709,94.63,28.5192]
[1644648906735,5.281,94.724,94.63,28.5192]
[1644648906938,5.281,94.749,94.635,2.94688419]
[1644648907135,5.281,94.749,94.66,15.8403]
[1644648907337,12.67,94.78,94.66,15.8403]
[1644648907338,5.28,94.759,94.66,15.8403]
[1644648907537,0.0356815,94.76,94.661,47.184]
[1644648907738,0.0356815,94.76,94.68,52.7893]
[1644648907937,5.279,94.759,94.68,52.7893]
[1644648908137,36.42926119,94.758,94.68,52.7893]
[1644648908338,5.277,94.757,94.68,52.7893]
[1644648908540,36.42926119,94.758,94.68,52.7893]
[1644648908740,5.277,94.757,94.69,15.8368]
[1644648908942,0.65820138,94.699,94.69,15.8368]
[1644648909341,0.0356815,94.76,94.69,15.8368]
[1644648909542,5.277,94.759,94.69,15.8368]
[1644648909743,0.0356815,94.77,94.691,2.38366791]
[1644648909970,5.277,94.758,94.691,2.38366791]
[1644648910170,0.0356815,94.77,94.691,2.38366791]
[1644648910363,42.3476294,94.781,94.691,2.38366791]
[1644648910364,5.277,94.779,94.691,2.38366791]
[1644648910571,0.0356815,94.77,94.691,2.38366791]
[1644648910765,5.277,94.769,94.7,15.8363]
[1644648910964,0.0356815,94.77,94.7,15.8363]
[1644648911165,5.3126815,94.78,94.7,15.8363]
[1644648911367,5.277,94.778,94.7,15.8363]
[1644648911566,5.277,94.779,94.7,15.8363]
[1644648912265,5.277,94.779,94.681,24.9127]
[1644648912468,0.0356815,94.77,94.675,2.38366791]
[1644648912665,5.277,94.769,94.675,2.38366791]
[1644648913566,0.65804451,94.698,94.675,2.38366791]
[1644648913766,22.7169,94.768,94.68,15.8404]
[1644648913970,5.277,94.767,94.68,15.8404]
[1644648914769,36.4739821,94.766,94.68,15.8404]
[1644648914969,5.277,94.765,94.68,15.8404]
[1644648915668,5.277,94.765,94.681,2.38366791]
[1644648915870,36.4739821,94.766,94.7,15.8362]
[1644648916078,5.277,94.765,94.7,15.8362]
[1644648916272,0.0356815,94.77,94.701,2.38366791]
[1644648916471,0.0356815,94.78,94.701,2.38366791]
[1644648916770,7.0356815,94.79,94.701,2.38366791]
[1644648916970,5.277,94.789,94.701,2.38366791]
[1644648917172,7.0356815,94.79,94.701,2.38366791]
[1644648917371,34.73904401,94.789,94.701,2.38366791]
[1644648917771,34.73904401,94.789,94.72,15.8298]
[1644648917971,34.73904401,94.789,94.73,12.67]
[1644648918370,34.73904401,94.789,94.731,2.38366791]
[1644648918771,5.276,94.819,94.731,2.38366791]
[1644648918972,0.0356815,94.82,94.74,15.828]
[1644648919371,0.0356815,94.82,94.741,2.38366791]
[1644648919572,0.0356815,94.82,94.741,13.12366791]
[1644648919773,0.0356815,94.83,94.742,45.5747]
[1644648919972,0.0356815,94.84,94.76,15.8241]
[1644648920182,0.0356815,94.85,94.77,12.67]
[1644648920474,0.0356815,94.87,94.77,16.61]
[1644648920674,0.0356815,94.87,94.77,12.67]
[1644648920875,0.0356815,94.87,94.771,2.38366791]
[1644648921076,5.273,94.869,94.771,2.38366791]
[1644648921274,0.0356815,94.86,94.771,2.38366791]
[1644648921777,0.0356815,94.86,94.78,15.8174]
[1644648921976,5.273,94.859,94.78,28.4874]
[1644648922175,113.0,94.851,94.756,2.38366791]
[1644648922377,0.0356815,94.84,94.7,15.61688419]
[1644648922575,5.275,94.839,94.7,12.67]
[1644648922778,22.5010815,94.838,94.7,12.67]
[1644648922975,0.03602046,94.83,94.701,2.38366791]
[1644648923177,48.57079759,94.828,94.72,15.8334]
[1644648923374,48.57079759,94.828,94.73,12.67]
[1644648923578,48.57079759,94.828,94.74,12.67]
[1644648923776,48.57079759,94.828,94.75,12.67]
[1644648924376,48.57079759,94.828,94.751,2.38366791]
[1644648925778,48.57079759,94.828,94.77,15.8248]
[1644648926179,48.57079759,94.828,94.771,2.38366791]
[1644648926380,0.03602046,94.84,94.771,2.38366791]
[1644648926582,0.03602046,94.87,94.771,2.38366791]
[1644648926782,5.273,94.869,94.771,2.38366791]
[1644648926981,0.03602046,94.86,94.771,7.65666791]
[1644648927384,46.90225675,94.85,94.78,15.8212]
[1644648927788,46.90225675,94.85,94.781,2.38366791]
[1644648928384,46.90225675,94.85,94.8,15.8189]
[1644648928784,5.272,94.849,94.8,15.8189]
[1644648929385,5.272,94.849,94.801,2.38366791]
[1644648929587,46.90225675,94.85,94.801,2.38366791]
[1644648929793,5.272,94.868,94.801,2.38366791]
[1644648930388,5.272,94.868,94.81,15.8187]
[1644648930587,49.0794,94.884,94.81,15.8187]
[1644648930588,5.272,94.869,94.81,15.8187]
[1644648930788,48.05279032,94.868,94.81,15.8187]
[1644648930988,5.272,94.867,94.81,15.8187]
[1644648933398,5.272,94.879,94.811,2.38366791]
[1644648933592,113.0,94.888,94.83,15.813]
[1644648933791,113.0,94.888,94.84,12.67]
[1644648934192,48.21424944,94.904,94.84,12.67]
[1644648934394,5.269,94.903,94.84,12.67]
[1644648934792,5.269,94.903,94.841,2.38366791]
[1644648934994,0.03602046,94.92,94.85,15.8089]
[1644648935191,113.0,94.931,94.85,15.8089]
[1644648935192,5.269,94.93,94.85,28.4789]
[1644648935392,0.03602046,94.92,94.851,2.38366791]
[1644648935596,0.03602046,94.93,94.851,2.38366791]
[1644648935793,113.0,94.931,94.851,2.38366791]
[1644648936219,113.0,94.931,94.87,15.8044]
[1644648936392,5.269,94.93,94.87,15.8044]
[1644648936592,7.65266791,94.93,94.821,5.268]
[1644648936792,7.65266791,94.93,94.83,12.67]
[1644648936793,0.03602046,94.92,94.83,12.67]
[1644648936994,5.269,94.919,94.83,12.67]
[1644648937193,0.03602046,94.91,94.85,15.8116]
[1644648937391,0.03602046,94.92,94.85,15.8116]
[1644648937592,5.269,94.918,94.85,15.8116]
[1644648937792,46.3212,94.928,94.85,15.8116]
[1644648937793,2.38366791,94.919,94.85,15.8116]
[1644648937995,5.269,94.917,94.85,15.8116]
[1644648938204,2.38366791,94.917,94.85,15.8116]
[1644648938398,5.269,94.916,94.85,15.8116]
[1644648938598,5.269,94.919,94.85,15.8116]
[1644648938801,0.03602046,94.92,94.85,28.4816]
[1644648938995,38.72555427,94.929,94.85,28.4816]
[1644648939296,0.03602046,94.92,94.851,2.38366791]
[1644648939496,5.269,94.928,94.87,15.8066]
[1644648939696,38.72555427,94.929,94.826,22.9384]
[1644648939697,5.269,94.919,94.86,12.67]
[1644648939898,2.38366791,94.92,94.84,65.3703]
[1644648940095,0.03602046,94.92,94.84,65.3703]
[1644648940698,0.03602046,94.92,94.85,15.8115]
[1644648940896,38.72555427,94.929,94.85,15.8115]
[1644648941098,0.03602046,94.92,94.85,15.8115]
[1644648941298,5.269,94.928,94.85,15.8115]
[1644648941496,0.03602046,94.92,94.85,15.8115]
[1644648941696,5.269,94.928,94.85,15.8115]
[1644648941896,0.03602046,94.92,94.85,15.8115]
[1644648942096,0.03602046,94.94,94.85,15.8115]
[1644648942297,0.03602046,94.92,94.86,12.67]
[1644648942499,46.8776,94.969,94.87,15.8049]
[1644648942500,0.03602046,94.93,94.87,15.8049]
[1644648942698,5.269,94.939,94.87,15.8049]
[1644648942699,0.03602046,94.96,94.87,28.4749]
[1644648942998,5.268,94.938,94.87,15.8049]
[1644648943202,48.38227027,94.937,94.87,15.8049]
[1644648943398,53.65027027,94.937,94.87,15.8049]
[1644648943602,48.38227027,94.937,94.87,15.8049]
[1644648944021,5.268,94.936,94.87,15.8049]
[1644648944627,5.268,94.936,94.843,17.34057871]
[1644648944825,39.90867303,94.921,94.83,52.7027]
[1644648945025,5.30502046,94.92,94.81,15.61688419]
[1644648945226,0.03602046,94.91,94.81,12.67]
[1644648945424,5.269,94.909,94.81,12.67]
[1644648945625,5.269,94.909,94.827,17.34057871]
[1644648945929,5.269,94.909,94.83,12.67]
[1644648946125,0.03602046,94.91,94.83,28.4846]
[1644648946326,0.03602046,94.91,94.831,17.34057871]
[1644648946526,0.03602046,94.91,94.831,19.72424662]
[1644648946727,5.269,94.92,94.832,2.38366791]
[1644648946927,0.03602046,94.91,94.832,19.72424662]
[1644648947126,5.269,94.909,94.832,17.34057871]
[1644648947329,2.38366791,94.909,94.832,17.34057871]
[1644648947527,5.269,94.908,94.832,17.34057871]
[1644648947927,0.03602046,94.91,94.832,17.34057871]
[1644648948128,23.61402046,94.92,94.833,2.38366791]
[1644648948330,0.03602046,94.91,94.833,2.38366791]
[1644648948533,5.269,94.919,94.834,17.34057871]
[1644648948731,0.03602046,94.91,94.84,28.4825]
[1644648948931,23.61402046,94.92,94.84,31.42938419]
[1644648949131,0.03602046,94.93,94.85,2.94688419]
[1644648949336,0.03602046,94.93,94.862,2.94688419]
[1644648949536,47.0326,94.988,94.86,12.67]
[1644648949537,0.03602046,94.92,94.86,12.67]
[1644648949732,0.03602046,94.96,94.863,2.38366791]
[1644648949932,36.56046134,94.933,94.863,2.38366791]
[1644648950133,36.56046134,94.933,94.87,15.8029]
[1644648950333,5.268,94.932,94.87,15.8029]
[1644648950937,0.03602046,94.95,94.87,15.8029]
[1644648951142,29.5522,94.96,94.88,12.67]
[1644648951337,0.03602046,94.95,94.9,15.8028]
[1644648951552,113.0,94.961,94.9,15.8028]
[1644648952639,46.955841,94.973,94.9,30.85646791]
[1644648952835,5.267,94.96,94.9,15.8028]
[1644648953037,0.03602046,94.97,94.9,15.8028]
[1644648953235,41.1265754,94.958,94.881,2.38366791]
[1644648953435,41.1265754,94.958,94.88,15.8059]
[1644648953640,7.65066791,94.957,94.86,12.67]
[1644648953935,0.03602046,94.95,94.854,2.94688419]
[1644648954136,5.268,94.949,94.854,2.94688419]
[1644648954337,0.03602046,94.94,94.86,15.8094]
[1644648954738,5.268,94.939,94.861,2.38366791]
[1644648954937,0.03602046,94.95,94.87,12.67]
[1644648955337,5.268,94.949,94.871,2.38366791]
[1644648955539,0.03602046,94.95,94.871,2.38366791]
[1644648955749,0.03602046,94.95,94.88,15.8055]
[1644648955941,5.267,94.949,94.88,15.8055]
[1644648956143,0.03602046,94.95,94.881,2.38366791]
[1644648956347,47.5912,94.957,94.881,2.38366791]
[1644648956540,5.267,94.949,94.881,2.38366791]
[1644648957742,5.267,94.949,94.87,12.67]
[1644648957942,5.267,94.949,94.867,2.38366791]
[1644648958244,5.267,94.949,94.853,2.94688419]
[1644648958453,0.03602046,94.94,94.853,2.94688419]
[1644648958646,0.03602046,94.94,94.85,2.94688419]
[1644648958842,42.33869666,94.938,94.85,15.8107]
[1644648959043,5.269,94.937,94.85,15.8107]
[1644648959245,23.7824,94.936,94.85,15.8107]
[1644648959443,5.269,94.935,94.85,15.8107]
[1644648960046,5.269,94.935,94.838,2.94688419]
[1644648960247,2.38366791,94.934,94.838,2.94688419]
[1644648960447,2.38366791,94.934,94.827,2.94688419]
[1644648960448,19.67,94.92,94.827,2.94688419]
[1644648960647,19.67,94.92,94.78,12.67]
[1644648960648,46.82546946,94.918,94.816,2.94688419]
[1644648960845,0.03602046,94.91,94.818,2.94688419]
[1644648961046,5.269,94.909,94.82,2.94688419]
[1644648961248,5.269,94.909,94.817,2.94688419]
[1644648961449,5.269,94.909,94.818,2.94688419]
[1644648961646,5.269,94.909,94.839,0.74907721]
[1644648962650,2.3163303,94.908,94.839,0.74907721]
[1644648962848,48.42009484,94.899,94.839,0.74907721]
[1644648963149,48.42009484,94.899,94.839,0.00907721]
[1644648963150,12.67,94.89,94.839,0.00907721]
[1644648963347,5.269,94.889,94.839,0.00907721]
[1644648963547,46.8575,94.888,94.839,0.00907721]
[1644648963750,5.269,94.887,94.839,0.00907721]
[1644648964547,46.8575,94.888,94.839,2.39274512]
[1644648964748,46.8575,94.888,94.839,0.00907721]
[1644648964951,5.269,94.887,94.839,0.00907721]
[1644648965150,46.8575,94.888,94.839,0.00907721]
[1644648965751,5.269,94.887,94.839,0.00907721]
[1644648965955,46.8575,94.888,94.839,0.00907721]
[1644648966554,5.269,94.887,94.839,0.00907721]
[1644648966955,5.269,94.91,94.84,2.38366791]
[1644648967155,0.03602046,94.93,94.84,15.05366791]
[1644648967354,0.03602046,94.92,94.841,2.94688419]
[1644648967554,5.30502046,94.93,94.846,2.94688419]
[1644648967754,0.03602046,94.92,94.851,2.94688419]
[1644648967955,43.80006075,94.93,94.86,15.8071]
[1644648968154,0.03602046,94.94,94.86,15.8071]
[1644648968656,0.03602046,94.94,94.861,2.38366791]
[1644648968860,0.03602046,94.94,94.88,15.8023]
[1644648969156,70.4645,94.984,94.881,2.38366791]
[1644648969157,44.79223941,94.966,94.881,2.38366791]
[1644648969983,0.03602046,94.97,94.9,15.8014]
[1644648970185,0.03602046,94.97,94.91,12.67]
[1644648970381,112.53602046,94.997,94.91,12.67]
[1644648970582,0.03705966,95.0,94.911,2.38366791]
[1644648970781,0.03705966,94.99,94.911,2.38366791]
[1644648970984,0.03705966,95.0,94.915,1.48495571]
[1644648971183,29.3805,95.025,94.911,2.38366791]
[1644648971184,5.265,94.999,94.92,12.67]
[1644648971386,0.03705966,95.02,94.92,12.67]
[1644648971582,0.03705966,95.02,94.922,1.48495571]
[1644648971782,5.264,95.019,94.923,1.48495571]
[1644648971984,5.264,95.019,94.923,3.86862362]
[1644648972184,5.264,95.019,94.924,1.48495571]
[1644648972385,36.39026987,95.018,94.925,1.48495571]
[1644648972585,5.264,95.017,94.925,1.48495571]
[1644648972784,5.264,95.017,94.95,15.7937]
[1644648973386,2.38366791,95.016,94.925,2.38366791]
[1644648973586,5.264,95.015,94.923,1.7449881]
[1644648974788,5.264,95.015,94.93,15.7975]
[1644648975791,5.264,95.017,94.93,15.7975]
[1644648975992,36.39026987,95.018,94.93,28.4675]
[1644648976191,5.264,95.017,94.93,28.4675]
[1644648976591,4.28173411,95.017,94.93,28.4675]
[1644648976790,4.28173411,95.017,94.93,30.85116791]
[1644648977390,36.39026987,95.018,94.93,30.85116791]
[1644648979494,0.03705966,95.02,94.93,30.85116791]
[1644648979694,0.03705966,95.02,94.931,17.44921263]
[1644648979893,0.03705966,95.02,94.95,15.7884]
[1644648980095,0.03705966,95.05,94.96,12.67]
[1644648980495,34.48218207,95.041,94.96,12.67]
[1644648980696,0.03705966,95.04,94.961,2.38366791]
[1644648980895,34.48218207,95.041,94.961,2.38366791]
[1644648981897,34.48218207,95.041,94.98,15.7842]
[1644648982095,5.263,95.04,94.98,15.7842]
[1644648982295,34.48218207,95.041,94.98,15.7842]
[1644648982895,5.261,95.04,94.98,15.7842]
[1644648983096,5.261,95.04,95.008,1.7449881]
[1644648983395,34.48218207,95.041,95.008,1.7449881]
[1644648983595,5.261,95.04,95.008,1.7449881]
[1644648983795,113.0,95.056,95.008,1.7449881]
[1644648984497,39.19164178,95.055,95.008,1.7449881]
[1644648985896,113.0,95.056,95.008,1.7449881]
[1644648986496,2.38366791,95.055,95.008,1.7449881]
[1644648986799,113.0,95.056,95.008,1.7449881]
[1644648986998,5.261,95.055,95.008,1.7449881]
[1644648987197,113.0,95.056,95.008,1.7449881]
[1644648987198,113.0,95.056,95.01,15.7839]
[1644648989605,113.0,95.147,95.11,10.99488646]
[1644648989798,1.45892163,95.195,95.092,5.49405296]
[1644648990002,5.256,95.198,95.111,2.38366791]
[1644648990198,74.4921,95.238,95.111,2.38366791]